[Event "ESP-chT 1st Division 2020"]
[Site "Padron"]
[Date "2020.10.05"]
[Round "3.11"]
[White "Martinez Ramirez, Erik"]
[Black "Travadon, Loic"]
[Result "0-1"]
[ECO "B33"]
[WhiteElo "2231"]
[BlackElo "2424"]
[Annotator "NA"]
[PlyCount "98"]
[EventDate "2020.10.01"]
[EventType "team-tourn"]
[EventCountry "ESP"]
[SourceTitle "playchess.com"]
[Source "ChessBase"]
[SourceQuality "1"]
[TimeControl "5400+30"]

1. e4 {[%emt 0:00:00]} c5 {[%emt 0:00:00]} 2. Nf3 {[%emt 0:00:00]} Nc6 {[%emt 0:00:00]} 3. d4 {[%emt 0:00:00]} cxd4 {[%emt 0:00:00]} 4. Nxd4 {[%emt 0:00:00]} Nf6 {[%emt 0:00:00]} 5. Nc3 {[%emt 0:00:18]} e5 {[%emt 0:00:00]} 6. Ndb5 {[%emt 0:00:47]} d6 {[%emt 0:00:00]} 7. Bg5 {[%emt 0:00:36]} a6 {[%emt 0:00:03]} 8. Na3 {[%emt 0:00:22]} b5 {[%emt 0:00:04]} 9. Bxf6 {[%emt 0:00:19]} gxf6 {[%emt 0:00:27]} 10. Nd5 {[%emt 0:00:05]} f5 {[%emt 0:00:18]} 11. Bd3 {[%emt 0:02:24]} Be6 {[%emt 0:00:06]} 12. O-O {[%emt 0:13:51]} Bxd5 {[%emt 0:00:19]} 13. exd5 {[%emt 0:00:09]} Ne7 {[%emt 0:00:05]} 14. Re1 {[%emt 0:05:40]} Bg7 {[%emt 0:00:17]} 15. c3 {[%emt 0:00:59]} O-O {[%emt 0:00:16]} 16. Nc2 {[%emt 0:02:43]} f4 {[%emt 0:00:24]} 17. a4 {[%emt 0:00:43]} f5 {[%emt 0:00:38]} 18. axb5 {[%emt 0:01:25]} e4 {[%emt 0:00:07]} 19. Bf1 {[%emt 0:00:53]} axb5 {[%emt 0:00:06]} 20. Nb4 {[%emt 0:03:59]} Rxa1 {[%emt 0:01:47]} 21. Qxa1 {[%emt 0:00:09]} Ng6 {[%emt 0:00:28]} 22. g3 {[%emt 0:20:55]} Ne5 {[%emt 0:00:42]} 23. Bg2 {[%emt 0:01:05]} f3 {[%emt 0:00:06]} 24. Bh3 {[%emt 0:02:16]} Qg5 {[%emt 0:01:50]} 25. Nc6 {[%emt 0:03:18]} Nd3 {[%emt 0:01:19]} 26. Re3 {[%emt 0:03:31]} Bh6 {[%emt 0:03:12]} 27. Qa7 {[%emt 0:02:51]} Qh5 {[%emt 0:00:50]} 28. Bxf5 {[%emt 0:02:46]} Rxf5 {[%emt 0:10:22]} 29. Ne7+ {[%emt 0:06:39]} Kh8 {[%emt 0:00:13]} 30. Nxf5 {[%emt 0:01:32]} Qxf5 {[%emt 0:00:10]} 31. Qd4+ {[%emt 0:00:33]} Ne5 {[%emt 0:01:34]} 32. Qxe4 {[%emt 0:00:12]} Qh5 {[%emt 0:01:03]} 33. Rd3 {[%emt 0:02:48]} Bc1 {[%emt 0:13:55]} 34. b3 {[%emt 0:01:38]} Ba3 {[%emt 0:03:52]} 35. h4 {[%emt 0:05:07]} Bc5 {[%emt 0:01:22]} 36. Qf4 {[%emt 0:02:21]} Bxf2+ {[%emt 0:02:13]} 37. Kf1 {[%emt 0:00:01]} Kg7 {[%emt 0:00:18]} 38. Rd4 {[%emt 0:05:44]} Bxd4 {[%emt 0:01:01]} 39. cxd4 {[%emt 0:00:02]} Ng4 {[%emt 0:01:26]} 40. Qxd6 {[%emt 0:00:43]} Qf7 {[%emt 0:00:27]} 41. h5 {[%emt 0:06:26]} h6 {[%emt 0:00:17]} 42. Qe6 {[%emt 0:02:15]} Qxe6 {[%emt 0:00:07]} 43. dxe6 {[%emt 0:00:03]} Kf6 {[%emt 0:00:08]} 44. d5 {[%emt 0:00:05]} b4 {[%emt 0:00:11]} 45. Ke1 {[%emt 0:00:07]} Ke7 {[%emt 0:00:08]} 46. Kf1 {[%emt 0:00:11]} Nf6 {[%emt 0:00:37]} 47. Kf2 {[%emt 0:00:08]} Nxd5 {[%emt 0:00:29]} 48. Kxf3 {[%emt 0:00:16]} Kxe6 {[%emt 0:00:09]} 49. g4 {[%emt 0:01:25]} Ke5 {[%emt 0:00:23]} 0-1

[Event "ESP-chT 1st Division 2020"]
[Site "Padron"]
[Date "2020.10.05"]
[Round "3.12"]
[White "Ambartsumova, Karina"]
[Black "Hernando Rodrigo, Inmaculada"]
[Result "1-0"]
[ECO "B32"]
[WhiteElo "2371"]
[BlackElo "1899"]
[Annotator "NA"]
[PlyCount "49"]
[EventDate "2020.10.01"]
[EventType "team-tourn"]
[EventCountry "ESP"]
[SourceTitle "playchess.com"]
[Source "ChessBase"]
[SourceQuality "1"]
[TimeControl "5400+30"]

1. e4 {[%emt 0:00:00]} c5 {[%emt 0:00:00]} 2. Nf3 {[%emt 0:00:29]} Nc6 {[%emt 0:00:00]} 3. d4 {[%emt 0:00:24]} cxd4 {[%emt 0:00:00]} 4. Nxd4 {[%emt 0:00:08]} e5 {[%emt 0:00:00]} 5. Nb5 {[%emt 0:04:09]} d6 {[%emt 0:00:20]} 6. N1c3 {[%emt 0:05:09]} a6 {[%emt 0:01:38]} 7. Na3 {[%emt 0:00:12]} b5 {[%emt 0:00:48]} 8. Nd5 {[%emt 0:00:32]} Nge7 {[%emt 0:02:51]} 9. c4 {[%emt 0:04:27]} Nd4 {[%emt 0:38:05]} 10. cxb5 {[%emt 0:22:50]} Nxd5 {[%emt 0:02:38]} 11. exd5 {[%emt 0:00:15]} Bd7 {[%emt 0:02:05]} 12. Be3 {[%emt 0:17:46]} Nxb5 {[%emt 0:06:56]} 13. Nc4 {[%emt 0:00:28]} Qf6 {[%emt 0:10:41]} 14. Nb6 {[%emt 0:03:06]} Rd8 {[%emt 0:11:57]} 15. a4 {[%emt 0:02:56]} Nd4 {[%emt 0:09:15]} 16. Nxd7 {[%emt 0:05:58]} Rxd7 {[%emt 0:01:46]} 17. Bxa6 {[%emt 0:01:41]} Rc7 {[%emt 0:01:13]} 18. Bxd4 {[%emt 0:03:18]} exd4 {[%emt 0:00:02]} 19. Bb5+ {[%emt 0:00:06]} Kd8 {[%emt 0:00:11]} 20. O-O {[%emt 0:00:15]} d3 {[%emt 0:03:56]} 21. Qxd3 {[%emt 0:03:35]} Qxb2 {[%emt 0:00:39]} 22. Qe3 {[%emt 0:00:11]} Be7 {[%emt 0:01:43]} 23. Rac1 {[%emt 0:01:16]} Bf6 {[%emt 0:01:06]} 24. Rxc7 {[%emt 0:02:17]} Kxc7 {[%emt 0:03:00]} 25. Qa7+ {[%emt 0:00:08]} 1-0

[Event "ESP-chT 1st Division 2020"]
[Site "Padron"]
[Date "2020.10.05"]
[Round "3.13"]
[White "Suarez Gomez, Julio"]
[Black "Espinosa Aranda, Angel"]
[Result "1/2-1/2"]
[ECO "E11"]
[WhiteElo "2426"]
[BlackElo "2502"]
[Annotator "ChessBase"]
[PlyCount "60"]
[EventDate "2020.10.01"]
[EventType "team-tourn"]
[EventCountry "ESP"]
[SourceTitle "playchess.com"]
[Source "ChessBase"]
[SourceQuality "1"]
[TimeControl "5400+30"]

1. d4 {[%emt 0:00:00]} Nf6 {[%emt 0:00:00]} 2. Nf3 {[%emt 0:00:00]} e6 {[%emt 0:00:29]} 3. c4 {[%emt 0:00:00]} Bb4+ {[%emt 0:00:41]} 4. Nbd2 {[%emt 0:00:05]} O-O {[%emt 0:04:24]} 5. a3 {[%emt 0:00:22]} Be7 {[%emt 0:02:51]} 6. e4 {[%emt 0:01:07]} d6 {[%emt 0:00:04]} 7. Qc2 {[%emt 0:00:09]} Nfd7 {[%emt 0:00:49]} 8. Nb1 {[%emt 0:05:16]} e5 {[%emt 0:00:29]} 9. Be3 {[%emt 0:04:45]} exd4 {[%emt 0:06:38]} 10. Nxd4 {[%emt 0:00:07]} Ne5 {[%emt 0:02:18]} 11. Be2 {[%emt 0:05:45]} Nbc6 {[%emt 0:03:57]} 12. O-O {[%emt 0:07:13]} Nxd4 {[%emt 0:12:15]} 13. Bxd4 {[%emt 0:00:29]} Nc6 {[%emt 0:00:03]} 14. Be3 {[%emt 0:05:08]} f5 {[%emt 0:02:06]} 15. exf5 {[%emt 0:02:24]} Bxf5 {[%emt 0:00:18]} 16. Qb3 {[%emt 0:00:05]} Bg5 {[%emt 0:14:57]} 17. Qxb7 {[%emt 0:14:44]} Bd7 {[%emt 0:08:30]} 18. Nc3 {[%emt 0:16:23]} Bxe3 {[%emt 0:06:35]} 19. fxe3 {[%emt 0:00:06]} Rxf1+ {[%emt 0:00:28]} 20. Rxf1 {[%emt 0:00:03]} Rb8 {[%emt 0:00:06]} 21. Qa6 {[%emt 0:00:08]} Qe8 {[%emt 0:04:31]} 22. Bf3 {[%emt 0:13:21]} Qxe3+ {[%emt 0:09:22]} 23. Kh1 {[%emt 0:00:05]} Ne5 {[%emt 0:00:19]} 24. Bd5+ {[%emt 0:01:00]} Kh8 {[%emt 0:00:26]} 25. Qb7 {[%emt 0:02:37]} Qb6 {[%emt 0:00:07]} 26. Qxb6 {[%emt 0:00:05]} axb6 {[%emt 0:00:04]} 27. b3 {[%emt 0:00:23]} g6 {[%emt 0:00:30]} 28. Kg1 {[%emt 0:03:37]} Kg7 {[%emt 0:00:26]} 29. h3 {[%emt 0:01:47]} Re8 {[%emt 0:07:14]} 30. a4 {[%emt 0:04:49]} Rb8 {[%emt 0:02:59]} 1/2-1/2

[Event "ESP-chT 1st Division 2020"]
[Site "Padron"]
[Date "2020.10.05"]
[Round "3.14"]
[White "Plazuelo Pascual, Juan"]
[Black "Reinaldo Castineira, Roi"]
[Result "1/2-1/2"]
[ECO "E40"]
[WhiteElo "2474"]
[BlackElo "2469"]
[Annotator "ChessBase"]
[PlyCount "57"]
[EventDate "2020.10.01"]
[EventType "team-tourn"]
[EventCountry "ESP"]
[SourceTitle "playchess.com"]
[Source "ChessBase"]
[SourceQuality "1"]
[TimeControl "5400+30"]

1. d4 {[%emt 0:00:00]} e6 {[%emt 0:00:05]} 2. c4 {[%emt 0:00:00]} Nf6 {[%emt 0:00:47]} 3. Nc3 {[%emt 0:00:38]} Bb4 {[%emt 0:00:33]} 4. e3 {[%emt 0:01:39]} d5 {[%emt 0:00:11]} 5. Bd2 {[%emt 0:01:50]} O-O {[%emt 0:02:25]} 6. Nf3 {[%emt 0:00:15]} b6 {[%emt 0:01:50]} 7. cxd5 {[%emt 0:00:14]} exd5 {[%emt 0:00:09]} 8. Bd3 {[%emt 0:00:05]} Re8 {[%emt 0:06:03]} 9. Ne5 {[%emt 0:17:31]} Bf8 {[%emt 0:07:03]} 10. O-O {[%emt 0:02:04]} Ba6 {[%emt 0:11:14]} 11. Bxa6 {[%emt 0:02:56]} Nxa6 {[%emt 0:00:08]} 12. f4 {[%emt 0:10:40]} c5 {[%emt 0:01:30]} 13. Be1 {[%emt 0:04:14]} cxd4 {[%emt 0:18:51]} 14. exd4 {[%emt 0:00:45]} Nc7 {[%emt 0:00:09]} 15. f5 {[%emt 0:14:45]} b5 {[%emt 0:19:07]} 16. Qd3 {[%emt 0:10:36]} b4 {[%emt 0:02:19]} 17. Ne2 {[%emt 0:01:05]} Qb8 {[%emt 0:04:31]} 18. Rc1 {[%emt 0:12:00]} Nb5 {[%emt 0:00:18]} 19. Bg3 {[%emt 0:08:04]} Qb7 {[%emt 0:00:18]} 20. Bh4 {[%emt 0:01:04]} Ne4 {[%emt 0:01:08]} 21. f6 {[%emt 0:01:10]} g6 {[%emt 0:00:07]} 22. Rc2 {[%emt 0:01:48]} Rac8 {[%emt 0:06:46]} 23. Rxc8 {[%emt 0:00:46]} Rxc8 {[%emt 0:00:08]} 24. Bf2 {[%emt 0:01:24]} a6 {[%emt 0:02:41]} 25. Be3 {[%emt 0:00:42]} Qc7 {[%emt 0:01:47]} 26. Rc1 {[%emt 0:00:51]} Qb7 {[%emt 0:00:20]} 27. Rf1 {[%emt 0:00:04]} Qc7 {[%emt 0:00:04]} 28. Rc1 {[%emt 0:00:52]} Qb7 {[%emt 0:00:23]} 29. Rf1 {[%emt 0:00:05]} 1/2-1/2

[Event "ESP-chT 1st Division 2020"]
[Site "Padron"]
[Date "2020.10.05"]
[Round "3.16"]
[White "Aguilera Lopez, Alejandro"]
[Black "Abal Cores, Lucas"]
[Result "1/2-1/2"]
[ECO "A80"]
[WhiteElo "2241"]
[BlackElo "2315"]
[Annotator "NA"]
[PlyCount "101"]
[EventDate "2020.10.01"]
[EventType "team-tourn"]
[EventCountry "ESP"]
[SourceTitle "playchess.com"]
[Source "ChessBase"]
[SourceQuality "1"]
[TimeControl "5400+30"]

1. d4 {[%emt 0:00:00]} f5 {[%emt 0:00:00]} 2. Bg5 {[%emt 0:00:23]} d5 {[%emt 0:01:02]} 3. e3 {[%emt 0:00:26]} Nf6 {[%emt 0:00:07]} 4. Bxf6 {[%emt 0:00:24]} exf6 {[%emt 0:00:04]} 5. c4 {[%emt 0:00:06]} c6 {[%emt 0:03:36]} 6. cxd5 {[%emt 0:00:34]} Qxd5 {[%emt 0:01:45]} 7. Nc3 {[%emt 0:00:29]} Bb4 {[%emt 0:01:42]} 8. Nge2 {[%emt 0:00:51]} Be6 {[%emt 0:09:10]} 9. Nf4 {[%emt 0:01:46]} Qd7 {[%emt 0:05:19]} 10. Bd3 {[%emt 0:01:23]} Bf7 {[%emt 0:09:06]} 11. Qc2 {[%emt 0:04:09]} g6 {[%emt 0:02:18]} 12. h4 {[%emt 0:02:18]} h5 {[%emt 0:03:51]} 13. a3 {[%emt 0:05:10]} Bd6 {[%emt 0:01:49]} 14. Nce2 {[%emt 0:00:33]} Qe7 {[%emt 0:05:12]} 15. O-O {[%emt 0:04:06]} Nd7 {[%emt 0:03:52]} 16. b4 {[%emt 0:02:34]} Kf8 {[%emt 0:06:05]} 17. Rfe1 {[%emt 0:02:44]} Nb6 {[%emt 0:08:37]} 18. e4 {[%emt 0:15:59]} fxe4 {[%emt 0:03:49]} 19. Bxe4 {[%emt 0:00:09]} f5 {[%emt 0:02:52]} 20. Bf3 {[%emt 0:13:23]} Qxh4 {[%emt 0:01:17]} 21. g3 {[%emt 0:03:01]} Qf6 {[%emt 0:00:56]} 22. b5 {[%emt 0:07:31]} g5 {[%emt 0:03:40]} 23. Nd3 {[%emt 0:01:25]} h4 {[%emt 0:04:30]} 24. bxc6 {[%emt 0:01:54]} bxc6 {[%emt 0:00:34]} 25. Ne5 {[%emt 0:01:15]} Be8 {[%emt 0:05:10]} 26. Nc3 {[%emt 0:02:14]} hxg3 {[%emt 0:03:17]} 27. fxg3 {[%emt 0:00:10]} Rd8 {[%emt 0:01:01]} 28. Bg2 {[%emt 0:05:31]} Kg7 {[%emt 0:08:04]} 29. Na4 {[%emt 0:06:56]} f4 {[%emt 0:03:10]} 30. Nc5 {[%emt 0:05:45]} Nd5 {[%emt 0:01:15]} 31. Bxd5 {[%emt 0:03:34]} cxd5 {[%emt 0:00:01]} 32. Rab1 {[%emt 0:01:19]} fxg3 {[%emt 0:01:03]} 33. Rb7+ {[%emt 0:00:34]} Kg8 {[%emt 0:00:01]} 34. Qg2 {[%emt 0:01:45]} Bxc5 {[%emt 0:00:56]} 35. dxc5 {[%emt 0:00:19]} Qf4 {[%emt 0:00:14]} 36. Nf3 {[%emt 0:00:57]} g4 {[%emt 0:01:54]} 37. Qb2 {[%emt 0:02:38]} Qh6 {[%emt 0:00:31]} 38. Nh4 {[%emt 0:00:24]} Rh7 {[%emt 0:00:25]} 39. Rxh7 {[%emt 0:00:15]} Qxh7 {[%emt 0:00:08]} 40. Qf6 {[%emt 0:00:18]} Qc2 {[%emt 0:01:02]} 41. Qg5+ {[%emt 0:00:53]} Kh8 {[%emt 0:00:02]} 42. Ng6+ {[%emt 0:01:23]} Bxg6 {[%emt 0:00:48]} 43. Qxd8+ {[%emt 0:00:04]} Kg7 {[%emt 0:00:14]} 44. Qe7+ {[%emt 0:00:52]} Kg8 {[%emt 0:00:39]} 45. Qe6+ {[%emt 0:00:31]} Kh7 {[%emt 0:00:26]} 46. Qe7+ {[%emt 0:00:27]} Kg8 {[%emt 0:00:07]} 47. Qd8+ {[%emt 0:00:12]} Kg7 {[%emt 0:00:06]} 48. Qc7+ {[%emt 0:00:17]} Kg8 {[%emt 0:00:25]} 49. Qb8+ {[%emt 0:00:23]} Kg7 {[%emt 0:01:05]} 50. Qe5+ {[%emt 0:01:06]} Kh7 {[%emt 0:00:23]} 51. Qe7+ {[%emt 0:01:06]} 1/2-1/2

[Event "ESP-chT 1st Division 2020"]
[Site "Padron"]
[Date "2020.10.05"]
[Round "3.17"]
[White "Rodriguez Ferreiros, Andres"]
[Black "Martinez Piqueras, Carlos"]
[Result "1/2-1/2"]
[ECO "B32"]
[WhiteElo "2133"]
[BlackElo "2200"]
[Annotator "NA"]
[PlyCount "107"]
[EventDate "2020.10.01"]
[EventType "team-tourn"]
[EventCountry "ESP"]
[SourceTitle "playchess.com"]
[Source "ChessBase"]
[SourceQuality "1"]
[TimeControl "5400+30"]

1. e4 {[%emt 0:00:00]} c5 {[%emt 0:00:00]} 2. Nf3 {[%emt 0:00:00]} Nc6 {[%emt 0:00:05]} 3. d4 {[%emt 0:00:00]} cxd4 {[%emt 0:00:06]} 4. Nxd4 {[%emt 0:00:06]} e5 {[%emt 0:00:18]} 5. Nb5 {[%emt 0:00:17]} d6 {[%emt 0:00:06]} 6. N1c3 {[%emt 0:01:50]} a6 {[%emt 0:00:14]} 7. Na3 {[%emt 0:01:00]} Be6 {[%emt 0:00:28]} 8. Nc4 {[%emt 0:08:05]} Rb8 {[%emt 0:00:12]} 9. a4 {[%emt 0:03:57]} Nb4 {[%emt 0:02:37]} 10. Be2 {[%emt 0:14:32]} Rc8 {[%emt 0:19:50]} 11. Nd5 {[%emt 0:05:45]} Bxd5 {[%emt 0:16:55]} 12. exd5 {[%emt 0:00:18]} Nf6 {[%emt 0:00:11]} 13. Ne3 {[%emt 0:20:48]} Nfxd5 {[%emt 0:25:15]} 14. c3 {[%emt 0:04:27]} Nxe3 {[%emt 0:00:43]} 15. Bxe3 {[%emt 0:01:48]} Nc6 {[%emt 0:00:06]} 16. Bg4 {[%emt 0:04:18]} Ra8 {[%emt 0:05:04]} 17. Qb3 {[%emt 0:02:48]} Qb8 {[%emt 0:06:14]} 18. O-O {[%emt 0:03:56]} Be7 {[%emt 0:00:31]} 19. Bf3 {[%emt 0:04:15]} O-O {[%emt 0:01:16]} 20. Bd5 {[%emt 0:00:07]} Qc7 {[%emt 0:01:04]} 21. f4 {[%emt 0:02:35]} Bf6 {[%emt 0:04:33]} 22. fxe5 {[%emt 0:01:52]} dxe5 {[%emt 0:04:47]} 23. Qc4 {[%emt 0:02:35]} Rac8 {[%emt 0:02:26]} 24. Qg4 {[%emt 0:03:40]} Qe7 {[%emt 0:03:12]} 25. Rxf6 {[%emt 0:03:40]} Qxf6 {[%emt 0:00:14]} 26. Rf1 {[%emt 0:00:03]} Qg6 {[%emt 0:03:12]} 27. Bxf7+ {[%emt 0:00:31]} Qxf7 {[%emt 0:00:00]} 28. Rxf7 {[%emt 0:00:09]} Kxf7 {[%emt 0:00:02]} 29. Qd7+ {[%emt 0:00:49]} Kg8 {[%emt 0:03:18]} 30. Qxb7 {[%emt 0:00:04]} a5 {[%emt 0:00:51]} 31. b4 {[%emt 0:01:23]} axb4 {[%emt 0:00:11]} 32. cxb4 {[%emt 0:01:38]} Nd4 {[%emt 0:01:04]} 33. h3 {[%emt 0:01:32]} Nf5 {[%emt 0:00:41]} 34. Qd5+ {[%emt 0:00:43]} Kh8 {[%emt 0:00:05]} 35. Bc5 {[%emt 0:00:46]} Rfe8 {[%emt 0:00:22]} 36. a5 {[%emt 0:00:19]} Rcd8 {[%emt 0:00:36]} 37. Qf3 {[%emt 0:00:39]} Nd4 {[%emt 0:00:31]} 38. Qe4 {[%emt 0:00:52]} Nb3 {[%emt 0:00:44]} 39. Be3 {[%emt 0:01:58]} Nd4 {[%emt 0:00:43]} 40. a6 {[%emt 0:00:32]} Ra8 {[%emt 0:00:13]} 41. Bxd4 {[%emt 0:00:35]} exd4 {[%emt 0:00:06]} 42. Qxd4 {[%emt 0:00:16]} Rxa6 {[%emt 0:00:02]} 43. b5 {[%emt 0:00:17]} Rae6 {[%emt 0:01:39]} 44. Qb4 {[%emt 0:01:01]} Rb8 {[%emt 0:00:15]} 45. Qf4 {[%emt 0:02:15]} Reb6 {[%emt 0:00:07]} 46. h4 {[%emt 0:00:18]} Rxb5 {[%emt 0:00:04]} 47. h5 {[%emt 0:00:34]} h6 {[%emt 0:00:21]} 48. Qf3 {[%emt 0:00:34]} Rg5 {[%emt 0:00:54]} 49. Qe2 {[%emt 0:00:39]} Rb1+ {[%emt 0:01:13]} 50. Kf2 {[%emt 0:00:38]} Rbb5 {[%emt 0:00:37]} 51. g4 {[%emt 0:00:55]} Rb4 {[%emt 0:00:33]} 52. Kg3 {[%emt 0:01:08]} Rgb5 {[%emt 0:00:32]} 53. Qe8+ {[%emt 0:00:11]} Kh7 {[%emt 0:00:01]} 54. Qg6+ {[%emt 0:00:16]} 1/2-1/2

[Event "ESP-chT 1st Division 2020"]
[Site "Padron"]
[Date "2020.10.05"]
[Round "3.18"]
[White "Rodrigo Yanguas, Maria"]
[Black "Dorado Meijide, Andrea"]
[Result "0-1"]
[ECO "C08"]
[WhiteElo "2077"]
[BlackElo "1779"]
[Annotator "NA"]
[PlyCount "82"]
[EventDate "2020.10.01"]
[EventType "team-tourn"]
[EventCountry "ESP"]
[SourceTitle "playchess.com"]
[Source "ChessBase"]
[SourceQuality "1"]
[TimeControl "5400+30"]

1. e4 {[%emt 0:00:00]} e6 {[%emt 0:00:00]} 2. d4 {[%emt 0:00:00]} d5 {[%emt 0:00:02]} 3. Nd2 {[%emt 0:00:06]} c5 {[%emt 0:00:18]} 4. exd5 {[%emt 0:02:51]} exd5 {[%emt 0:00:09]} 5. dxc5 {[%emt 0:04:48]} Bxc5 {[%emt 0:02:35]} 6. Nb3 {[%emt 0:00:14]} Bb6 {[%emt 0:01:18]} 7. Nf3 {[%emt 0:04:35]} Nf6 {[%emt 0:07:26]} 8. h3 {[%emt 0:03:26]} O-O {[%emt 0:00:29]} 9. Be2 {[%emt 0:00:29]} Ne4 {[%emt 0:00:58]} 10. Nbd4 {[%emt 0:04:07]} Nc6 {[%emt 0:01:59]} 11. O-O {[%emt 0:02:55]} Qf6 {[%emt 0:05:34]} 12. Be3 {[%emt 0:04:08]} Bd7 {[%emt 0:06:49]} 13. c3 {[%emt 0:02:27]} Rad8 {[%emt 0:04:35]} 14. Kh1 {[%emt 0:15:37]} Rfe8 {[%emt 0:02:54]} 15. Qb3 {[%emt 0:03:55]} Ng3+ {[%emt 0:06:47]} 16. fxg3 {[%emt 0:03:53]} Rxe3 {[%emt 0:00:07]} 17. Qxd5 {[%emt 0:16:32]} Be6 {[%emt 0:02:56]} 18. Qh5 {[%emt 0:01:38]} Rd5 {[%emt 0:00:30]} 19. Qh4 {[%emt 0:06:47]} Qxh4 {[%emt 0:00:22]} 20. gxh4 {[%emt 0:01:00]} Nxd4 {[%emt 0:00:17]} 21. Nxd4 {[%emt 0:01:53]} Rxd4 {[%emt 0:02:25]} 22. cxd4 {[%emt 0:00:22]} Rxe2 {[%emt 0:00:07]} 23. Rfe1 {[%emt 0:04:34]} Rxe1+ {[%emt 0:00:43]} 24. Rxe1 {[%emt 0:00:01]} Bxd4 {[%emt 0:00:18]} 25. b3 {[%emt 0:00:44]} g6 {[%emt 0:00:08]} 26. h5 {[%emt 0:00:56]} Kg7 {[%emt 0:00:25]} 27. hxg6 {[%emt 0:01:16]} hxg6 {[%emt 0:00:13]} 28. Kh2 {[%emt 0:01:22]} a5 {[%emt 0:01:27]} 29. Re4 {[%emt 0:01:46]} Bc5 {[%emt 0:01:00]} 30. Kg3 {[%emt 0:03:14]} b5 {[%emt 0:00:53]} 31. Kf4 {[%emt 0:02:24]} Bd5 {[%emt 0:00:59]} 32. Re2 {[%emt 0:00:15]} a4 {[%emt 0:01:07]} 33. Ke5 {[%emt 0:01:00]} Be6 {[%emt 0:00:18]} 34. bxa4 {[%emt 0:01:31]} bxa4 {[%emt 0:00:07]} 35. Rc2 {[%emt 0:01:35]} Be7 {[%emt 0:01:02]} 36. Rf2 {[%emt 0:01:50]} a3 {[%emt 0:00:23]} 37. g4 {[%emt 0:01:20]} Kh6 {[%emt 0:00:30]} 38. Rc2 {[%emt 0:02:15]} Bf8 {[%emt 0:00:11]} 39. Rc6 {[%emt 0:01:09]} Bg7+ {[%emt 0:00:11]} 40. Kf4 {[%emt 0:00:14]} Bb2 {[%emt 0:00:34]} 41. g5+ {[%emt 0:00:48]} Kg7 {[%emt 0:00:13]} 0-1

[Event "ESP-chT 1st Division 2020"]
[Site "Padron"]
[Date "2020.10.05"]
[Round "3.19"]
[White "Pap, Misa"]
[Black "Ladron De Guevara Pinto, Paolo"]
[Result "0-1"]
[ECO "C77"]
[WhiteElo "2447"]
[BlackElo "2433"]
[Annotator "ChessBase"]
[PlyCount "128"]
[EventDate "2020.10.01"]
[EventType "team-tourn"]
[EventCountry "ESP"]
[SourceTitle "playchess.com"]
[Source "ChessBase"]
[SourceQuality "1"]
[TimeControl "5400+30"]

1. e4 {[%emt 0:00:00]} e5 {[%emt 0:00:00]} 2. Nf3 {[%emt 0:00:00]} Nc6 {[%emt 0:00:00]} 3. Bb5 {[%emt 0:00:00]} a6 {[%emt 0:00:00]} 4. Ba4 {[%emt 0:00:00]} Nf6 {[%emt 0:00:04]} 5. d3 {[%emt 0:00:41]} d6 {[%emt 0:09:25]} 6. c3 {[%emt 0:05:10]} g6 {[%emt 0:07:31]} 7. O-O {[%emt 0:00:50]} Bg7 {[%emt 0:00:11]} 8. Re1 {[%emt 0:04:32]} O-O {[%emt 0:00:40]} 9. Bxc6 {[%emt 0:00:18]} bxc6 {[%emt 0:00:06]} 10. d4 {[%emt 0:00:18]} Nd7 {[%emt 0:09:40]} 11. Bg5 {[%emt 0:00:17]} f6 {[%emt 0:02:28]} 12. Be3 {[%emt 0:00:23]} Rb8 {[%emt 0:09:32]} 13. Nbd2 {[%emt 0:02:46]} Qe7 {[%emt 0:00:56]} 14. Qc2 {[%emt 0:12:18]} Qf7 {[%emt 0:05:35]} 15. Nb3 {[%emt 0:12:29]} Nb6 {[%emt 0:17:28]} 16. Nfd2 {[%emt 0:01:17]} Re8 {[%emt 0:24:20]} 17. Na5 {[%emt 0:03:55]} Bd7 {[%emt 0:00:17]} 18. b3 {[%emt 0:11:17]} Nc8 {[%emt 0:00:15]} 19. Qd3 {[%emt 0:02:16]} Ne7 {[%emt 0:03:00]} 20. dxe5 {[%emt 0:05:32]} fxe5 {[%emt 0:00:07]} 21. b4 {[%emt 0:00:12]} Ra8 {[%emt 0:00:07]} 22. f3 {[%emt 0:03:52]} Kh8 {[%emt 0:00:17]} 23. Rf1 {[%emt 0:00:50]} Rf8 {[%emt 0:00:36]} 24. a3 {[%emt 0:01:21]} Qf6 {[%emt 0:03:32]} 25. Rf2 {[%emt 0:05:34]} g5 {[%emt 0:01:24]} 26. Rc1 {[%emt 0:01:03]} h6 {[%emt 0:00:49]} 27. Nf1 {[%emt 0:00:23]} Qf7 {[%emt 0:00:36]} 28. Ng3 Kg8 {[%emt 0:00:34]} 29. c4 {[%emt 0:02:12]} Be6 {[%emt 0:01:04]} 30. Nf1 {[%emt 0:02:01]} Rfd8 {[%emt 0:00:18]} 31. g4 {[%emt 0:00:23]} Rd7 {[%emt 0:00:47]} 32. Ng3 {[%emt 0:05:51]} d5 {[%emt 0:00:25]} 33. Qc2 {[%emt 0:02:04]} d4 {[%emt 0:01:06]} 34. Bd2 {[%emt 0:00:06]} Qf6 {[%emt 0:02:37]} 35. Qd3 {[%emt 0:00:18]} Bf8 {[%emt 0:00:54]} 36. Nf5 {[%emt 0:01:14]} Bf7 {[%emt 0:00:19]} 37. h4 {[%emt 0:01:35]} gxh4 {[%emt 0:00:38]} 38. g5 {[%emt 0:03:39]} Qe6 {[%emt 0:00:41]} 39. Nb7 {[%emt 0:02:47]} Ng6 {[%emt 0:00:23]} 40. Rg2 {[%emt 0:00:47]} h5 {[%emt 0:00:07]} 41. Kf2 {[%emt 0:00:31]} Rb8 {[%emt 0:00:04]} 42. Na5 {[%emt 0:00:26]} Kh7 {[%emt 0:00:57]} 43. Rh1 {[%emt 0:00:10]} c5 {[%emt 0:00:03]} 44. Nxh4 {[%emt 0:04:31]} Nxh4 {[%emt 0:00:04]} 45. Rxh4 {[%emt 0:00:12]} cxb4 {[%emt 0:00:08]} 46. axb4 {[%emt 0:00:03]} Bxb4 {[%emt 0:00:41]} 47. Kg3 {[%emt 0:04:17]} Bg6 {[%emt 0:00:43]} 48. Nb3 {[%emt 0:00:43]} Rf7 {[%emt 0:01:35]} 49. Bxb4 {[%emt 0:01:45]} Rxb4 {[%emt 0:00:04]} 50. Nd2 {[%emt 0:00:15]} c5 {[%emt 0:00:19]} 51. Kh2 {[%emt 0:00:36]} a5 {[%emt 0:00:08]} 52. Qe2 {[%emt 0:00:50]} Kg7 {[%emt 0:00:17]} 53. Qd1 {[%emt 0:00:32]} a4 {[%emt 0:00:45]} 54. Nf1 {[%emt 0:00:35]} Rf4 {[%emt 0:00:41]} 55. Rxf4 {[%emt 0:00:36]} exf4 {[%emt 0:00:04]} 56. Qc1 {[%emt 0:00:04]} Qe5 {[%emt 0:00:22]} 57. Nd2 {[%emt 0:00:05]} d3 {[%emt 0:00:45]} 58. Nb1 {[%emt 0:00:22]} Rb3 {[%emt 0:01:46]} 59. Na3 {[%emt 0:00:28]} Bf7 {[%emt 0:00:28]} 60. g6 {[%emt 0:00:09]} Bxg6 {[%emt 0:00:20]} 61. Nb5 {[%emt 0:00:00]} Kh7 {[%emt 0:00:27]} 62. Qd2 {[%emt 0:00:30]} Qf6 {[%emt 0:00:21]} 63. Qf2 {[%emt 0:00:08]} d2 {[%emt 0:00:09]} 64. Qxd2 {[%emt 0:00:14]} Qh4+ {[%emt 0:00:06]} 0-1